bitfinex-derivatives/quotes_BNBF0:USTF0_20230831
["timestamp","ask_amount","ask_price","bid_price","bid_amount"]
[1693496844778,0.0724922,221.56,221.18,0.18804836]
[1693496844984,0.0724922,221.56,221.19,0.18804836]
[1693496845183,0.0724922,221.55,221.19,0.18804836]
[1693496845385,0.0724922,221.55,221.18,0.18804836]
[1693496845584,0.0724922,221.56,221.2,0.18804836]
[1693496845784,0.0724922,221.55,221.21,0.18804836]
[1693496845976,0.0724922,221.55,221.18,0.18804836]
[1693496846180,0.0724922,221.55,221.19,0.18804836]
[1693496846376,0.0724922,221.55,221.17,0.18804836]
[1693496846783,0.0724922,221.54,221.17,0.18804836]
[1693496847179,3.09722434,221.93,221.17,0.18804836]
[1693496847382,0.0725295,221.54,221.16,0.0737612]
[1693496847578,0.0725295,221.55,221.17,0.18804836]
[1693496847778,0.0725295,221.55,221.18,0.18804836]
[1693496847979,0.0725295,221.55,221.19,0.18804836]
[1693496848181,0.0725295,221.55,221.16,0.18804836]
[1693496848384,0.0725295,221.55,221.17,0.18804836]
[1693496848684,0.0725295,221.54,221.18,0.18804836]
[1693496848879,0.0725295,221.54,221.16,0.18804836]
[1693496849087,0.0725295,221.54,221.17,0.18804836]
[1693496849282,0.0725295,221.55,221.16,0.18804836]
[1693496849481,0.0725295,221.55,221.17,0.18804836]
[1693496849786,0.0725295,221.55,221.18,0.18804836]
[1693496849986,0.0725295,221.56,221.19,0.18804836]
[1693496850189,0.0725295,221.56,221.17,0.18804836]
[1693496850389,0.0725295,221.56,221.18,0.18804836]
[1693496850588,0.0725295,221.56,221.17,0.18804836]
[1693496850789,0.0725295,221.56,221.18,0.18804836]
[1693496851184,0.0725295,221.56,221.19,0.18804836]
[1693496851382,0.0725295,221.56,221.17,0.18804836]
[1693496851582,0.0725295,221.56,221.18,0.18804836]
[1693496851789,0.0725295,221.56,221.17,0.18804836]
[1693496852893,0.0725295,221.55,221.17,0.18804836]
[1693496853191,0.0725295,221.55,221.18,0.18804836]
[1693496853489,0.0725295,221.55,221.19,0.18804836]
[1693496853691,0.0725295,221.55,221.2,0.18804836]
[1693496853890,0.0725295,221.54,221.16,0.18804836]
[1693496854093,0.0725295,221.54,220.91,0.98348269]
[1693496854094,0.0725295,221.5,221.17,0.18826523]
[1693496854293,0.0725295,221.5,221.11,0.18826523]
[1693496854595,0.0725295,221.49,221.11,0.18826523]
[1693496855092,0.0725295,221.5,221.11,0.18826523]
[1693496855492,2.41765032,221.63,221.11,0.18826523]
[1693496855493,0.0725295,221.51,221.11,0.18826523]
[1693496855692,0.0725295,221.51,221.12,0.18826523]
[1693496855892,0.0725295,221.51,221.1,0.18826523]
[1693496856093,0.0725295,221.51,221.11,0.18826523]
[1693496856491,0.0725295,221.51,221.12,0.18826523]
[1693496856686,0.0725295,221.51,221.1,0.18826523]
[1693496856893,0.0725295,221.51,221.11,0.18826523]
[1693496857193,0.0725295,221.51,221.12,0.18826523]
[1693496857393,0.0725295,221.52,221.1,0.18826523]
[1693496857698,0.0725295,221.52,221.11,0.18826523]
[1693496857989,0.0725295,221.57,221.13,0.0737612]
[1693496858198,0.0725295,221.57,221.14,0.18826523]
[1693496858993,0.0725295,221.58,221.14,0.18826523]
[1693496859496,0.0725295,221.57,221.14,0.26202643]
[1693496859794,0.0725295,221.58,221.15,0.18826523]
[1693496860297,0.0725295,221.59,221.15,0.26202643]
[1693496860496,0.0725295,221.59,221.16,0.18826523]
[1693496860796,0.0725295,221.58,221.16,0.18826523]
[1693496861296,0.0725295,221.59,221.16,0.18826523]
[1693496861495,0.0725295,221.59,221.16,0.26202643]
[1693496861699,0.0725295,221.59,221.17,0.18826523]
[1693496861997,0.0725295,221.58,221.17,0.18826523]
[1693496862189,0.0725295,221.58,221.16,0.18826523]
[1693496862389,0.0725295,221.58,221.17,0.18826523]
[1693496863596,0.0725295,221.59,221.17,0.26202643]
[1693496863796,0.0725295,221.59,221.18,0.18826523]
[1693496864399,0.0725295,221.63,221.21,0.0737612]
[1693496864599,0.0725295,221.64,221.22,0.26202643]
[1693496864799,0.0725295,221.64,221.23,0.18826523]
[1693496865199,0.0725295,221.64,221.22,0.26202643]
[1693496865400,0.0725295,221.64,221.23,0.18826523]
[1693496865600,0.0725295,221.65,221.22,0.18826523]
[1693496865801,0.0725295,221.65,221.23,0.18826523]
[1693496866003,0.0725295,221.64,221.22,0.18826523]
[1693496866202,0.0725295,221.65,221.23,0.18826523]
[1693496866499,0.0725295,221.65,221.22,0.18826523]
[1693496866704,0.0725295,221.65,221.23,0.18826523]
[1693496866902,0.0725295,221.65,221.22,0.18826523]
[1693496867203,0.0725295,221.64,221.22,0.18826523]
[1693496867404,0.0725295,221.65,221.22,0.18826523]
[1693496868405,0.0725295,221.66,221.22,0.18826523]
[1693496870500,0.0725295,221.67,221.22,0.18826523]
[1693496870701,0.0725295,221.67,221.21,0.18826523]
[1693496871000,0.90216221,221.66,221.21,0.18826523]
[1693496871303,0.0725295,221.66,221.21,0.18826523]
[1693496872204,3.09722434,222.01,221.21,0.18826523]
[1693496872401,0.07243781,221.66,221.21,0.18826523]
[1693496872606,0.07243781,221.66,221.22,0.18826523]
[1693496872905,0.07243781,221.66,221.23,0.18826523]
[1693496873109,0.07243781,221.66,221.21,0.18826523]
[1693496873307,0.07243781,221.66,221.22,0.18826523]
[1693496873604,0.07243781,221.66,221.23,0.18826523]
[1693496873804,0.07243781,221.66,221.21,0.18826523]
[1693496874006,0.07243781,221.66,221.22,0.18826523]
[1693496874206,0.07243781,221.65,221.21,0.18826523]
[1693496874507,0.07243781,221.65,221.22,0.18826523]
[1693496874707,0.07243781,221.65,221.2,0.18826523]
[1693496874906,0.8298629,221.64,221.21,0.18826523]
[1693496875108,0.8298629,221.64,221.2,0.18826523]
[1693496875307,0.07243781,221.59,221.21,0.18826523]
[1693496875510,0.07243781,221.6,221.15,0.18826523]
[1693496875810,0.07243781,221.6,221.16,0.18826523]
[1693496876107,0.07243781,221.6,221.17,0.18826523]
[1693496876309,0.07243781,221.59,221.15,0.18826523]
[1693496876510,0.07243781,221.6,221.16,0.18826523]
[1693496876810,0.07243781,221.59,221.17,0.18826523]
[1693496877010,0.07243781,221.6,221.15,0.26185621]
[1693496877207,0.07243781,221.6,221.16,0.18826523]
[1693496877806,0.07243781,221.6,221.15,0.26185621]
[1693496878102,0.07243781,221.61,221.16,0.18826523]
[1693496878710,0.07243781,221.65,221.2,0.07359098]
[1693496879005,0.07243781,221.66,221.21,0.26185621]
[1693496879309,0.07243781,221.66,221.22,0.18826523]
[1693496879508,0.07243781,221.67,221.22,0.26185621]
[1693496879707,0.07243781,221.66,221.23,0.18826523]
[1693496879907,0.07243781,221.66,221.22,0.18826523]
[1693496880507,0.07243781,221.67,221.22,0.18826523]
[1693496880909,0.07243781,221.66,221.22,0.18826523]
[1693496881716,0.07243781,221.66,221.23,0.18826523]
[1693496882013,0.14487563,221.68,221.24,0.18826523]
[1693496882014,0.07243781,221.65,221.24,0.18826523]
[1693496882314,0.07243781,221.65,221.25,0.18826523]
[1693496882612,0.07243781,221.66,221.26,0.18826523]
[1693496882815,0.07243781,221.66,221.21,0.18826523]
[1693496883009,0.07243781,221.65,221.21,0.18826523]
[1693496884513,0.07243781,221.65,221.22,0.18826523]
[1693496884814,0.07243781,221.65,221.23,0.18826523]
[1693496885009,0.07243781,221.61,221.2,0.18826523]
[1693496885219,0.07243781,221.6,221.16,0.18826523]
[1693496885418,0.07243781,221.6,221.17,0.18826523]
[1693496885619,0.07243781,221.6,221.16,0.18826523]
[1693496885918,0.07243781,221.6,221.17,0.18826523]
[1693496886116,0.07243781,221.6,221.16,0.18826523]
[1693496886418,0.14487563,221.63,221.15,0.07359098]
[1693496886419,0.07243781,221.61,221.17,0.18826523]
[1693496886619,0.07243781,221.6,221.16,0.18826523]
[1693496886819,0.07243781,221.6,221.15,0.07359098]
[1693496886820,0.07243781,221.6,221.17,0.18826523]
[1693496887021,0.07243781,221.6,221.16,0.18826523]
[1693496887214,0.07243781,221.6,221.17,0.18826523]
[1693496887417,0.07243781,221.6,221.15,0.26185621]
[1693496887617,0.07243781,221.6,221.16,0.18826523]
[1693496888220,0.07243781,221.61,221.16,0.26185621]
[1693496888415,0.07243781,221.61,221.17,0.18826523]
[1693496889019,0.07243781,221.64,221.19,0.07359098]
[1693496889220,0.07243781,221.61,221.2,0.18826523]
[1693496889420,0.07243781,221.59,221.16,0.18826523]
[1693496889620,0.07243781,221.59,221.17,0.18826523]
[1693496889815,0.07243781,221.59,221.16,0.18826523]
[1693496890022,0.07243781,221.59,221.15,0.18826523]
[1693496890222,0.07243781,221.6,221.16,0.18826523]
[1693496890423,0.07243781,221.59,221.17,0.07359098]
[1693496890617,0.07243781,221.58,221.18,0.18826523]
[1693496891018,0.07243781,221.59,221.18,0.18826523]
[1693496891423,0.07243781,221.59,221.18,0.26185621]
[1693496891724,0.07243781,221.59,221.19,0.18826523]
[1693496891925,0.07243781,221.59,221.18,0.18826523]
[1693496892226,0.07243781,221.64,221.22,0.07359098]
[1693496892425,0.07243781,221.64,221.18,0.18826523]
[1693496892426,0.07243781,221.62,221.24,0.07359098]
[1693496892624,0.07243781,221.62,221.25,0.26185621]
[1693496892823,0.07243781,221.62,221.26,0.18826523]
[1693496894527,0.07243781,221.61,221.26,0.18826523]
[1693496896125,0.07243781,221.61,221.27,0.18826523]
[1693496896425,0.07243781,221.61,221.28,0.18826523]
[1693496896628,0.07243781,221.61,221.25,0.26185621]
[1693496896823,0.07243781,221.61,221.26,0.18826523]
[1693496897428,0.07243781,221.6,221.26,0.18826523]
[1693496897927,0.07243781,221.61,221.26,0.18826523]
[1693496898429,0.07243781,221.6,221.26,0.18826523]
[1693496898624,0.07243781,221.61,221.26,0.18826523]
[1693496898825,0.07243781,221.61,221.26,0.26185621]
[1693496899023,0.07243781,221.61,221.27,0.18826523]
[1693496899224,0.07243781,221.61,221.26,0.18826523]
[1693496899425,0.07243781,221.61,221.26,0.26185621]
[1693496899627,0.96583753,221.69,221.2,0.14718197]
[1693496899628,0.07243781,221.62,221.27,0.26185621]
[1693496899930,0.07243781,221.62,221.28,0.18826523]
[1693496900525,0.07243781,221.62,221.27,0.26185621]
[1693496900724,0.07243781,221.62,221.28,0.18826523]
[1693496901929,0.07243781,221.61,221.27,0.18826523]
[1693496902229,0.07243781,221.61,221.28,0.18826523]
[1693496902429,0.07243781,221.61,221.26,0.18826523]
[1693496902929,0.07243781,221.61,221.26,0.26185621]
[1693496903224,0.07243781,221.61,221.27,0.18826523]
[1693496903429,0.07243781,221.61,221.28,0.18826523]
[1693496903628,0.07243781,221.61,221.26,0.18826523]
[1693496903828,0.07243781,221.6,221.27,0.18826523]
[1693496904030,0.07243781,221.6,221.26,0.18826523]
[1693496904823,0.48291876,221.65,221.26,0.18826523]
[1693496904824,0.07243781,221.61,221.26,0.18826523]
[1693496905028,0.07243781,221.6,221.26,0.18826523]
[1693496906827,0.07243781,221.6,221.26,0.26185621]
[1693496907023,0.07243781,221.61,221.27,0.18826523]
[1693496907229,0.07243781,221.61,221.27,0.26185621]
[1693496907524,0.07243781,221.63,221.28,0.26185621]
[1693496907728,0.07243781,221.63,221.29,0.18826523]
[1693496908926,0.07243781,221.63,221.28,0.18826523]
[1693496909123,0.07243781,221.63,221.28,0.26185621]
[1693496909328,0.07243781,221.63,221.29,0.18826523]
[1693496909523,0.07243781,221.63,221.28,0.18826523]
[1693496909729,0.07243781,221.63,221.29,0.18826523]
[1693496909929,0.07243781,221.63,221.28,0.18826523]
[1693496910132,0.07243781,221.62,221.29,0.18826523]
[1693496910326,0.07243781,221.62,221.27,0.18826523]
[1693496910531,0.07243781,221.62,221.28,0.18826523]
[1693496910732,0.07243781,221.62,221.29,0.18826523]
[1693496910933,0.07243781,221.62,221.27,0.18826523]
[1693496911128,0.07243781,221.62,221.28,0.18826523]
[1693496911334,0.07243781,221.62,221.27,0.18826523]
[1693496911534,0.07243781,221.62,221.27,0.26185621]
[1693496911732,0.07243781,221.62,221.28,0.18826523]
[1693496912836,0.07243781,221.63,221.28,0.18826523]
[1693496914034,0.07243781,221.63,221.28,0.26185621]
[1693496914234,0.07243781,221.63,221.21,0.14718197]
[1693496914235,0.07243781,221.62,221.29,0.18826523]
[1693496914438,0.07243781,221.62,221.28,0.18826523]
[1693496915429,0.07243781,221.62,221.27,0.26185621]
[1693496915634,0.07243781,221.62,221.28,0.18826523]
[1693496915835,0.07243781,221.61,221.28,0.18826523]
[1693496916034,0.07243781,221.61,221.27,0.18826523]
[1693496916237,0.07243781,221.6,221.28,0.18826523]
[1693496916532,0.07243781,221.6,221.29,0.18826523]
[1693496916735,0.07243781,221.6,221.3,0.18826523]
[1693496916935,0.07243781,221.6,221.26,0.18826523]
[1693496917131,0.07243781,221.6,221.27,0.18826523]
[1693496917329,0.07243781,221.6,221.28,0.18826523]
[1693496917636,0.07243781,221.61,221.29,0.18826523]
[1693496917836,0.07243781,221.6,221.26,0.18826523]
[1693496918036,0.07243781,221.6,221.27,0.18826523]
[1693496918236,0.07243781,221.6,221.26,0.18826523]
[1693496918430,0.07243781,221.6,221.27,0.18826523]
[1693496918632,0.07243781,221.6,221.26,0.18826523]
[1693496920331,0.07243781,221.59,221.26,0.18826523]
[1693496921439,0.07243781,221.56,221.26,0.18826523]
[1693496921737,0.07243781,221.56,221.27,0.18826523]
[1693496921935,0.07243781,221.56,221.23,0.18826523]
[1693496922132,0.07243781,221.56,221.24,0.18826523]
[1693496922332,0.07243781,221.55,221.23,0.18826523]
[1693496922539,0.07243781,221.56,221.24,0.18826523]
[1693496922739,0.07243781,221.61,221.27,0.07359098]
[1693496922933,0.07243781,221.6,221.28,0.18826523]
[1693496923139,0.07243781,221.61,221.28,0.18826523]
[1693496924040,0.07243781,221.61,221.28,0.26185621]
[1693496924235,0.07243781,221.62,221.29,0.18826523]
[1693496924437,0.07243781,221.61,221.29,0.26185621]
[1693496924642,0.07243781,221.61,221.3,0.18826523]
[1693496924840,0.07243781,221.61,221.3,0.26185621]
[1693496925040,0.07243781,221.61,221.31,0.18826523]
[1693496925936,0.07243781,221.61,221.3,0.18826523]
[1693496926141,0.07243781,221.61,221.31,0.18826523]
[1693496926341,0.07243781,221.6,221.31,0.07359098]
[1693496926642,0.07243781,221.6,221.32,0.18826523]
[1693496926839,0.07243781,221.61,221.32,0.18826523]
[1693496931244,0.07243781,221.62,221.32,0.18826523]
[1693496931445,0.07243781,221.64,221.32,0.26185621]
[1693496931645,0.07243781,221.64,221.33,0.18826523]
[1693496931846,0.07243781,221.63,221.33,0.18826523]
[1693496933241,0.07243781,221.64,221.33,0.18826523]
[1693496935347,0.07243781,221.64,221.34,0.18826523]
[1693496935647,0.07243781,221.64,221.35,0.18826523]
[1693496935847,0.07243781,221.64,221.36,0.18826523]
[1693496936041,0.07243781,221.64,221.37,0.18826523]
[1693496936248,0.07243781,221.64,221.32,0.18826523]
[1693496936448,0.07243781,221.62,221.32,0.18826523]
[1693496936642,0.07243781,221.62,221.33,0.18826523]
[1693496936841,0.07243781,221.62,221.34,0.18826523]
[1693496937040,0.07243781,221.62,221.35,0.18826523]
[1693496937245,0.07243781,221.62,221.31,0.18826523]
[1693496937447,0.07243781,221.62,221.32,0.18826523]
[1693496937648,0.07243781,221.62,221.3,0.18826523]
[1693496937848,0.07243781,221.62,221.31,0.18826523]
[1693496938149,0.07243781,221.61,221.32,0.18826523]
[1693496938346,0.07243781,221.61,221.29,0.18826523]
[1693496938545,0.07243781,221.61,221.3,0.18826523]
[1693496938748,0.07243781,221.61,221.31,0.18826523]
[1693496938950,0.07243781,221.61,221.32,0.18826523]
[1693496939143,0.07243781,221.62,221.3,0.18826523]
[1693496939446,0.07243781,221.62,221.31,0.18826523]
[1693496939749,0.07243781,221.63,221.31,0.18826523]
[1693496940949,0.07243781,221.62,221.31,0.18826523]
[1693496941346,0.07243781,221.62,221.3,0.18826523]
[1693496941853,0.07243781,221.61,221.3,0.18826523]
[1693496942654,0.07243781,221.6,221.3,0.18826523]
[1693496942850,0.07243781,221.6,221.29,0.18826523]
[1693496943250,0.07243781,221.6,221.3,0.18826523]
[1693496943553,0.07243781,221.56,221.23,0.07359098]
[1693496943746,0.07243781,221.55,221.24,0.18793254]
[1693496944151,0.07243781,221.56,221.24,0.18793254]
[1693496944854,0.07243781,221.56,221.07,0.49060658]
[1693496944855,0.07264613,221.56,221.23,0.18793254]
[1693496945056,0.07264613,221.56,221.24,0.18793254]
[1693496945250,0.07264613,221.56,221.23,0.18793254]
[1693496945454,0.07264613,221.56,221.24,0.18793254]
[1693496945655,0.07264613,221.56,221.23,0.18793254]
[1693496945855,0.07264613,221.56,221.24,0.18793254]
[1693496946056,0.07264613,221.56,221.25,0.18793254]
[1693496946248,0.07264613,221.56,221.26,0.18793254]
[1693496946453,0.07264613,221.56,221.27,0.18793254]
[1693496946652,0.07264613,221.56,221.28,0.18793254]
[1693496946952,0.07264613,221.56,221.29,0.18793254]
[1693496947152,0.07264613,221.56,221.21,0.07384189]
[1693496947352,0.07264613,221.57,221.22,0.18792538]
[1693496947857,0.07264613,221.57,221.23,0.18792538]
[1693496948059,0.07264613,221.57,221.21,0.18792538]
[1693496948360,0.07264613,221.56,221.22,0.18792538]
[1693496948559,0.07264613,221.56,221.2,0.18792538]
[1693496948960,0.07264613,221.57,221.2,0.26176727]
[1693496949159,0.07264613,221.56,221.21,0.18792538]
[1693496949360,0.07264613,221.56,221.2,0.18792538]
[1693496949660,0.07264613,221.56,221.13,0.14768378]
[1693496949661,0.07264613,221.57,221.21,0.18792538]
[1693496949860,0.07264613,221.57,221.22,0.18792538]
[1693496950061,0.07264613,221.57,221.23,0.18792538]
[1693496950263,0.07264613,221.57,221.19,0.18792538]
[1693496950462,0.07264613,221.58,221.2,0.18792538]
[1693496950863,0.07264613,221.58,221.21,0.18792538]
[1693496951058,0.07264613,221.58,221.22,0.18792538]
[1693496951264,0.07264613,221.58,221.19,0.18792538]
[1693496951457,0.07264613,221.58,221.2,0.18792538]
[1693496951661,0.07264613,221.58,221.19,0.18792538]
[1693496951862,0.07264613,221.58,221.2,0.18792538]
[1693496952057,0.07264613,221.58,221.21,0.18792538]
[1693496952261,0.07264613,221.58,221.19,0.18792538]
[1693496952465,0.07264613,221.58,221.2,0.18792538]
[1693496952667,0.07264613,221.58,221.19,0.18792538]
[1693496952866,0.07264613,221.58,221.2,0.18792538]
[1693496953066,0.07264613,221.58,221.19,0.18792538]
[1693496953266,0.07264613,221.59,221.19,0.18792538]
[1693496954166,0.07264613,221.58,221.19,0.18792538]
[1693496954367,0.07264613,221.58,221.18,0.18792538]
[1693496954563,0.07264613,221.58,221.19,0.18792538]
[1693496954763,0.07264613,221.57,221.18,0.18792538]
[1693496954964,0.07264613,221.58,221.18,0.18792538]
[1693496955167,0.07264613,221.57,221.18,0.18792538]
[1693496955361,0.14529227,221.6,221.18,0.18792538]
[1693496955362,0.07264613,221.58,221.18,0.18792538]
[1693496955563,0.07264613,221.58,221.17,0.18792538]
[1693496955766,0.07264613,221.58,221.19,0.18792538]
[1693496955961,0.07264613,221.58,221.2,0.18792538]
[1693496956165,0.07264613,221.58,221.17,0.18792538]
[1693496956366,0.07264613,221.58,221.18,0.18792538]
[1693496956671,0.07264613,221.58,221.19,0.18792538]
[1693496956867,0.07264613,221.58,221.16,0.18792538]
[1693496957072,0.07264613,221.58,221.17,0.18792538]
[1693496957267,0.07264613,221.58,221.16,0.18792538]
[1693496958569,0.07264613,221.57,221.16,0.18792538]
[1693496958773,0.83003788,221.56,221.15,0.18792538]
[1693496958974,0.07264613,221.52,221.16,0.18792538]
[1693496959174,0.07264613,221.52,221.1,0.18792538]
[1693496959374,0.07264613,221.52,221.11,0.18792538]
[1693496959567,0.07264613,221.52,221.12,0.18792538]
[1693496959773,0.07264613,221.52,221.13,0.18792538]
[1693496959971,0.07264613,221.52,221.09,0.26176727]
[1693496960173,0.07264613,221.52,221.1,0.18792538]
[1693496960374,0.07264613,221.52,221.09,0.26176727]
[1693496960571,0.07264613,221.54,221.1,0.18792538]
[1693496960778,0.07264613,221.54,221.08,0.18792538]
[1693496960973,0.07264613,221.54,221.09,0.18792538]
[1693496961175,0.07264613,221.54,221.08,0.18792538]
[1693496961376,0.07264613,221.54,221.09,0.18792538]
[1693496961576,0.07264613,221.54,221.08,0.18792538]
[1693496961772,0.07264613,221.54,221.09,0.18792538]
[1693496961977,0.07264613,221.54,221.08,0.18792538]
[1693496962179,0.07264613,221.54,221.09,0.18792538]
[1693496962375,0.07264613,221.58,221.11,0.07384189]
[1693496962580,0.07264613,221.59,221.12,0.26176727]
[1693496962772,0.07264613,221.59,221.13,0.18792538]
[1693496963371,0.14529227,221.62,221.13,0.18792538]
[1693496963372,0.07264613,221.6,221.13,0.26176727]
[1693496963581,0.07264613,221.6,221.14,0.18792538]
[1693496964480,0.07264613,221.6,221.14,0.26176727]
[1693496964779,0.07264613,221.59,221.15,0.18792538]
[1693496964980,0.07264613,221.59,221.16,0.18792538]
[1693496965171,0.07264613,221.59,221.17,0.18792538]
[1693496965378,0.07264613,221.59,221.14,0.18792538]
[1693496965577,0.07264613,221.59,221.15,0.18792538]
[1693496965774,0.07264613,221.59,221.14,0.18792538]
[1693496965978,0.07264613,221.59,221.15,0.18792538]
[1693496966280,0.07264613,221.59,221.16,0.18792538]
[1693496966581,0.07264613,221.58,221.17,0.18792538]
[1693496966779,0.07264613,221.58,221.15,0.18792538]
[1693496966980,0.07264613,221.58,221.16,0.18792538]
[1693496967180,0.07264613,221.58,221.15,0.18792538]
[1693496967480,0.07264613,221.58,221.16,0.18792538]
[1693496967682,0.07264613,221.58,221.15,0.18792538]
[1693496967882,0.07264613,221.59,221.16,0.18792538]
[1693496968082,0.07264613,221.59,221.15,0.18792538]
[1693496968382,0.07264613,221.59,221.16,0.18792538]
[1693496968583,0.07264613,221.59,220.91,0.98455859]
[1693496968584,0.07264613,221.58,221.15,0.26176727]
[1693496968783,0.07264613,221.58,221.16,0.18792538]
[1693496969585,0.07264613,221.57,221.16,0.18792538]
[1693496969982,0.07264613,221.57,221.16,0.26176727]
[1693496970186,0.07264613,221.58,221.17,0.18792538]
[1693496970382,0.07264613,221.57,221.17,0.26176727]
[1693496970584,0.07264613,221.57,221.18,0.18792538]
[1693496971487,0.07264613,221.55,221.18,0.26176727]
[1693496971681,0.07264613,221.55,221.19,0.18792538]
[1693496972380,0.07264613,221.55,221.18,0.26176727]
[1693496972582,0.07264613,221.55,221.19,0.18792538]
[1693496973382,0.07264613,221.54,221.19,0.18792538]
[1693496973585,0.07264613,221.54,221.19,0.26176727]
[1693496973883,0.07264613,221.54,216.81,1.00079938]
[1693496973884,0.07264613,221.55,221.2,0.26176727]
[1693496974078,0.07264613,221.55,221.21,0.18792538]
[1693496975079,0.07264613,221.56,221.21,0.26176727]
[1693496975283,0.07264613,221.57,221.22,0.18792538]
[1693496975480,0.07264613,221.56,221.22,0.18792538]
[1693496975785,0.07264613,221.57,221.22,0.18792538]
[1693496975985,0.07264613,221.56,221.22,0.18792538]
[1693496977085,0.07264613,221.55,221.22,0.26176727]
[1693496977280,0.07264613,221.55,221.23,0.18792538]
[1693496978185,0.07264613,221.55,221.23,0.26176727]
[1693496978391,0.07264613,221.54,221.24,0.26176727]
[1693496978590,0.07264613,221.54,221.25,0.18792538]
[1693496979989,0.07264613,221.54,221.23,0.07384189]
[1693496979990,0.07264613,221.54,221.26,0.18792538]
[1693496980189,0.07264613,221.54,221.24,0.26176727]
[1693496980389,0.07264613,221.54,221.25,0.18792538]
[1693496980591,0.07264613,221.54,221.24,0.18792538]
[1693496980788,0.07264613,221.53,221.24,0.18792538]
[1693496980990,0.07264613,221.52,221.23,0.18792538]
[1693496981191,0.07264613,221.51,221.24,0.18792538]
[1693496981388,0.07264613,221.52,221.22,0.18792538]
[1693496981586,0.07264613,221.52,221.23,0.18792538]
[1693496981787,0.07264613,221.52,221.22,0.18792538]
[1693496984596,0.07264613,221.52,221.23,0.18792538]
[1693496984792,0.07264613,221.52,221.22,0.18792538]
[1693496984992,0.07264613,221.52,221.23,0.18792538]
[1693496985197,0.07264613,221.52,221.24,0.18792538]
[1693496985397,0.07264613,221.52,221.25,0.18792538]
[1693496985596,0.07264613,221.52,221.21,0.07384189]
[1693496985597,0.07264613,221.52,221.22,0.18792538]
[1693496985788,0.07264613,221.52,221.23,0.18792538]
[1693496985990,0.07264613,221.51,221.22,0.18792538]
[1693496986192,0.07264613,221.51,221.23,0.18792538]
[1693496986495,0.07264613,221.51,221.24,0.18792538]
[1693496986695,0.07264613,221.51,221.22,0.18792538]
[1693496986895,0.07264613,221.51,221.23,0.18792538]
[1693496987097,0.07264613,221.51,221.22,0.18792538]
[1693496987596,0.07264613,221.52,221.22,0.18792538]
[1693496991797,0.07264613,221.53,221.22,0.26176727]
[1693496992000,0.07264613,221.53,221.23,0.18792538]
[1693496993301,0.07264613,221.53,221.23,0.26176727]
[1693496993502,0.07264613,221.54,221.24,0.18792538]
[1693496994094,0.07264613,221.53,221.24,0.18792538]
[1693496994298,0.07264613,221.54,221.23,0.26176727]
[1693496994499,0.07264613,221.54,221.24,0.18792538]
[1693496994899,0.07264613,221.53,221.24,0.18792538]
[1693496995301,0.07264613,221.54,221.24,0.18792538]
[1693496995601,0.07264613,221.52,221.25,0.07384189]
[1693496995797,0.07264613,221.52,221.26,0.18792538]
[1693496996004,0.07264613,221.53,221.26,0.26176727]
[1693496996302,0.07264613,221.53,221.27,0.18792538]
[1693496998106,0.07264613,221.52,221.27,0.18792538]
[1693496998305,0.07264613,221.52,221.26,0.18792538]
[1693496998506,0.07264613,221.52,221.27,0.18792538]
[1693496999108,0.07264613,221.52,221.28,0.18792538]
[1693496999308,0.07264613,221.52,221.29,0.18792538]
[1693496999505,0.07264613,221.52,221.25,0.07384189]
[1693496999702,0.07264613,221.52,221.26,0.18795449]
[1693497001709,0.07264613,221.52,221.26,0.26179638]
[1693497001909,0.07264613,221.53,221.27,0.18795449]
[1693497002906,0.07264613,221.52,221.27,0.18795449]
[1693497003212,0.07264613,221.52,221.28,0.18795449]
[1693497003407,0.07264613,221.52,221.26,0.26179638]
[1693497003613,0.07264613,221.52,221.27,0.18795449]
[1693497004516,0.07264613,221.52,221.26,0.18795449]
[1693497004711,0.07264613,221.52,221.27,0.18795449]
[1693497004912,0.07264613,221.52,221.26,0.18795449]
[1693497005112,0.07264613,221.52,221.27,0.18795449]
[1693497006009,0.07264613,221.52,221.26,0.18795449]
[1693497006209,0.07264613,221.52,221.27,0.18795449]
[1693497006410,0.07264613,221.52,221.26,0.18795449]
[1693497006606,0.07264613,221.52,221.27,0.18795449]
[1693497006813,0.07264613,221.51,221.26,0.18795449]
[1693497007012,0.07264613,221.51,221.27,0.18799165]
[1693497007212,0.07264613,221.51,221.25,0.18799165]
[1693497007515,0.07264613,221.5,221.26,0.18800444]
[1693497007713,0.07264613,221.5,221.25,0.18800444]
[1693497008013,0.07264613,221.5,221.26,0.18800444]
[1693497008205,0.07264613,221.5,221.25,0.18800444]
[1693497008514,0.07264613,221.5,221.26,0.18800444]
[1693497008708,0.07264613,221.49,221.24,0.18800444]
[1693497008910,0.07264613,221.49,221.25,0.18805838]
[1693497009107,2.42153791,221.63,221.17,0.07384189]
[1693497009108,0.07264613,221.45,221.17,0.07384189]
[1693497009413,0.07264613,221.45,221.18,0.26207266]
[1693497009612,0.07264613,221.45,221.19,0.18823077]
[1693497009807,0.07264613,221.45,221.18,0.26207266]
[1693497010012,0.14529227,221.48,221.19,0.18823077]
[1693497010013,0.07264613,221.46,221.19,0.18823077]
[1693497011007,0.07264613,221.48,221.19,0.18823077]
[1693497011210,0.07264613,221.48,221.17,0.18823077]
[1693497011412,0.07264613,221.48,221.18,0.18823077]
[1693497011614,0.07264613,221.51,221.21,0.07384189]